[Event "Titled Tuesday Blitz July 6 2021"]
[White "Sukandar, Irine Kharisma"]
[Black "Oliveira, Silvio Eduardo"]
[WhiteFideId "7101937"]
[BlackFideId "2111560"]
[WhiteElo "2313"]
[BlackElo "2302"]
[Result "0-1"]
[Round "08"]
[TimeControl "180+1"]
[Date "2021.07.06"]
[WhiteClock "0:00:01"]
[BlackClock "0:00:24"]

1. d4 {[%clk 0:03:00]}  Nf6 {[%clk 0:03:00]} 2. Bf4 {[%clk 0:03:00]}  e6 {[%clk 0:02:58]} 3. e3 {[%clk 0:03:00]}  d5 {[%clk 0:02:58]} 4. Nd2 {[%clk 0:02:59]}  Bd6 {[%clk 0:02:58]} 5. Bg3 {[%clk 0:02:59]}  O-O {[%clk 0:02:58]} 6. Bd3 {[%clk 0:02:59]}  b6 {[%clk 0:02:58]} 7. Ngf3 {[%clk 0:02:56]}  c5 {[%clk 0:02:58]} 8. c3 {[%clk 0:02:55]}  Ba6 {[%clk 0:02:57]} 9. Bxa6 {[%clk 0:02:54]}  Nxa6 {[%clk 0:02:58]} 10. Qe2 {[%clk 0:02:54]}  Nc7 {[%clk 0:02:56]} 11. O-O-O {[%clk 0:02:46]}  b5 {[%clk 0:02:46]} 12. e4 {[%clk 0:02:45]}  Bxg3 {[%clk 0:02:35]} 13. hxg3 {[%clk 0:02:44]}  b4 {[%clk 0:02:36]} 14. cxb4 {[%clk 0:02:38]}  cxb4 {[%clk 0:02:27]} 15. e5 {[%clk 0:02:37]}  Nd7 {[%clk 0:02:27]} 16. Qd3 {[%clk 0:02:34]}  h6 {[%clk 0:02:27]} 17. g4 {[%clk 0:02:33]}  Qb8 {[%clk 0:01:51]} 18. g5 {[%clk 0:02:30]}  Qb5 {[%clk 0:01:51]} 19. Qxb5 {[%clk 0:02:20]}  Nxb5 {[%clk 0:01:52]} 20. gxh6 {[%clk 0:02:20]}  Rfc8+ {[%clk 0:01:52]} 21. Kb1 {[%clk 0:02:20]}  Rab8 {[%clk 0:01:48]} 22. hxg7 {[%clk 0:02:19]}  Nc3+ {[%clk 0:01:46]} 23. bxc3 {[%clk 0:01:33]}  bxc3+ {[%clk 0:01:47]} 24. Ka1 {[%clk 0:01:25]}  cxd2 {[%clk 0:01:33]} 25. Rxd2 {[%clk 0:01:25]}  Kxg7 {[%clk 0:01:29]} 26. Rb2 {[%clk 0:01:25]}  Nb6 {[%clk 0:01:29]} 27. Rb3 {[%clk 0:01:21]}  Rc2 {[%clk 0:01:28]} 28. Ng5 {[%clk 0:00:46]}  Rbc8 {[%clk 0:01:09]} 29. Rf3 {[%clk 0:00:37]}  Na4 {[%clk 0:00:53]} 30. Rb1 {[%clk 0:00:12]}  Nc3 {[%clk 0:00:43]} 31. Nxe6+ {[%clk 0:00:08]}  fxe6 {[%clk 0:00:38]} 32. Rb7+ {[%clk 0:00:08]}  Kg8 {[%clk 0:00:30]} 33. Rg3+ {[%clk 0:00:04]}  Kf8 {[%clk 0:00:30]} 34. Rxa7 {[%clk 0:00:02]}  Rc1+ {[%clk 0:00:24]} 35. Kb2 {[%clk 0:00:01]}  Nd1+ {[%clk 0:00:24]} 0-1


[Site "https://www.chess.com"]

[Event "Titled Tuesday Blitz July 6 2021"]
[White "Sychev, Klementy"]
[Black "Martinez Reyes, Pedro Ramon"]
[WhiteFideId "4114060"]
[BlackFideId "3901807"]
[WhiteElo "2615"]
[BlackElo "2398"]
[Result "0-1"]
[Round "08"]
[TimeControl "180+1"]
[Date "2021.07.06"]
[WhiteClock "0:00:30"]
[BlackClock "0:00:29"]

1. b4 {[%clk 0:03:00]}  c6 {[%clk 0:02:58]} 2. Bb2 {[%clk 0:03:00]}  Qb6 {[%clk 0:02:58]} 3. a3 {[%clk 0:02:56]}  a5 {[%clk 0:02:58]} 4. e3 {[%clk 0:02:54]}  axb4 {[%clk 0:02:55]} 5. Bd4 {[%clk 0:02:52]}  Qc7 {[%clk 0:02:38]} 6. axb4 {[%clk 0:02:52]}  Rxa1 {[%clk 0:02:35]} 7. Bxa1 {[%clk 0:02:53]}  e5 {[%clk 0:02:34]} 8. b5 {[%clk 0:02:45]}  Nf6 {[%clk 0:02:31]} 9. Nf3 {[%clk 0:02:43]}  d6 {[%clk 0:02:30]} 10. Be2 {[%clk 0:02:41]}  Be7 {[%clk 0:02:30]} 11. O-O {[%clk 0:02:41]}  O-O {[%clk 0:02:30]} 12. d4 {[%clk 0:02:40]}  e4 {[%clk 0:02:27]} 13. Nfd2 {[%clk 0:02:39]}  d5 {[%clk 0:02:27]} 14. c4 {[%clk 0:02:39]}  Be6 {[%clk 0:02:22]} 15. Qc1 {[%clk 0:02:34]}  Qd7 {[%clk 0:02:04]} 16. Nc3 {[%clk 0:02:31]}  Bg4 {[%clk 0:02:02]} 17. f3 {[%clk 0:02:26]}  exf3 {[%clk 0:01:59]} 18. gxf3 {[%clk 0:02:25]}  Bh3 {[%clk 0:01:52]} 19. Rf2 {[%clk 0:02:22]}  Re8 {[%clk 0:01:44]} 20. cxd5 {[%clk 0:02:17]}  cxd5 {[%clk 0:01:41]} 21. Nf1 {[%clk 0:02:18]}  Qc7 {[%clk 0:01:27]} 22. Ng3 {[%clk 0:02:15]}  Nbd7 {[%clk 0:01:25]} 23. Bf1 {[%clk 0:02:13]}  Be6 {[%clk 0:01:19]} 24. Qb1 {[%clk 0:02:09]}  g6 {[%clk 0:01:09]} 25. Bd3 {[%clk 0:02:09]}  Bd6 {[%clk 0:01:08]} 26. Nce2 {[%clk 0:01:59]}  Bh3 {[%clk 0:01:02]} 27. e4 {[%clk 0:01:31]}  dxe4 {[%clk 0:01:00]} 28. fxe4 {[%clk 0:01:32]}  Ng4 {[%clk 0:00:57]} 29. e5 {[%clk 0:01:32]}  Ndxe5 {[%clk 0:00:49]} 30. dxe5 {[%clk 0:01:30]}  Bc5 {[%clk 0:00:49]} 31. Bd4 {[%clk 0:01:29]}  Nxf2 {[%clk 0:00:49]} 32. Bxf2 {[%clk 0:01:20]}  Qxe5 {[%clk 0:00:47]} 33. Qc1 {[%clk 0:01:18]}  Rc8 {[%clk 0:00:41]} 34. Qd2 {[%clk 0:01:07]}  Qa1+ {[%clk 0:00:39]} 35. Nc1 {[%clk 0:00:52]}  Bxf2+ {[%clk 0:00:37]} 36. Kxf2 {[%clk 0:00:52]}  Qxc1 {[%clk 0:00:37]} 37. Qb4 {[%clk 0:00:49]}  Qc5+ {[%clk 0:00:36]} 38. Qxc5 {[%clk 0:00:48]}  Rxc5 {[%clk 0:00:36]} 39. Ne4 {[%clk 0:00:49]}  Re5 {[%clk 0:00:33]} 40. Kf3 {[%clk 0:00:32]}  Bf5 {[%clk 0:00:29]} 41. Nf6+ {[%clk 0:00:30]}  Kg7 {[%clk 0:00:29]} 0-1


[Site "https://www.chess.com"]

[Event "Titled Tuesday Blitz July 6 2021"]
[White "Tomiello, Lucas Costamilan"]
[Black "Sanchez Alvares, Kelvin Antonio"]
[WhiteFideId "22701940"]
[BlackFideId "3906680"]
[WhiteElo "1945"]
[BlackElo "2247"]
[Result "0-1"]
[Round "08"]
[TimeControl "180+1"]
[Date "2021.07.06"]
[WhiteClock "0:00:04"]
[BlackClock "0:00:20"]

1. e4 {[%clk 0:03:00]}  c5 {[%clk 0:02:59]} 2. Nf3 {[%clk 0:03:01]}  d6 {[%clk 0:02:59]} 3. d4 {[%clk 0:03:01]}  cxd4 {[%clk 0:03:00]} 4. Nxd4 {[%clk 0:03:02]}  Nf6 {[%clk 0:03:00]} 5. Nc3 {[%clk 0:03:03]}  g6 {[%clk 0:03:00]} 6. Be3 {[%clk 0:03:02]}  Bg7 {[%clk 0:03:00]} 7. f3 {[%clk 0:03:03]}  O-O {[%clk 0:02:59]} 8. Qd2 {[%clk 0:03:03]}  Nc6 {[%clk 0:02:59]} 9. Bc4 {[%clk 0:03:04]}  Ne5 {[%clk 0:02:59]} 10. Bb3 {[%clk 0:03:04]}  Bd7 {[%clk 0:02:59]} 11. O-O-O {[%clk 0:03:04]}  Rc8 {[%clk 0:02:59]} 12. Kb1 {[%clk 0:03:04]}  Re8 {[%clk 0:02:59]} 13. h4 {[%clk 0:03:02]}  h5 {[%clk 0:02:58]} 14. g4 {[%clk 0:03:03]}  hxg4 {[%clk 0:02:58]} 15. h5 {[%clk 0:03:03]}  Nxh5 {[%clk 0:02:58]} 16. Rdg1 {[%clk 0:03:03]}  Qa5 {[%clk 0:02:47]} 17. Bh6 {[%clk 0:02:52]}  Bf6 {[%clk 0:02:45]} 18. Bg5 {[%clk 0:02:38]}  Nc4 {[%clk 0:02:27]} 19. Bxc4 {[%clk 0:02:29]}  Bxg5 {[%clk 0:02:23]} 20. Qd3 {[%clk 0:02:25]}  Qc5 {[%clk 0:02:15]} 21. Bb3 {[%clk 0:02:20]}  Kg7 {[%clk 0:01:53]} 22. Nf5+ {[%clk 0:01:27]}  Bxf5 {[%clk 0:01:44]} 23. exf5 {[%clk 0:01:26]}  Nf4 {[%clk 0:01:41]} 24. Qd1 {[%clk 0:01:17]}  Qxf5 {[%clk 0:01:31]} 25. Rxg4 {[%clk 0:01:13]}  Rh8 {[%clk 0:01:16]} 26. Rhg1 {[%clk 0:01:09]}  Bf6 {[%clk 0:01:11]} 27. Ne4 {[%clk 0:00:57]}  Qe5 {[%clk 0:01:03]} 28. c3 {[%clk 0:00:54]}  Rh2 {[%clk 0:00:53]} 29. Bc2 {[%clk 0:00:38]}  d5 {[%clk 0:00:45]} 30. Ng3 {[%clk 0:00:35]}  e6 {[%clk 0:00:35]} 31. Re1 {[%clk 0:00:25]}  Qc7 {[%clk 0:00:28]} 32. Nf1 {[%clk 0:00:13]}  Rh4 {[%clk 0:00:25]} 33. Ng3 {[%clk 0:00:08]}  Rxg4 {[%clk 0:00:25]} 34. fxg4 {[%clk 0:00:08]}  Bh4 {[%clk 0:00:24]} 35. Qd4+ {[%clk 0:00:08]}  e5 {[%clk 0:00:22]} 36. Rxe5 {[%clk 0:00:08]}  Bf6 {[%clk 0:00:21]} 37. Qxf4 {[%clk 0:00:06]}  Qxe5 {[%clk 0:00:20]} 38. Qxe5 {[%clk 0:00:03]}  Bxe5 {[%clk 0:00:20]} 39. Ne2 {[%clk 0:00:04]} 0-1


[Site "https://www.chess.com"]

[Event "Titled Tuesday Blitz July 6 2021"]
[White "Tomiello, Mateus Costamilan"]
[Black "Michailov, Matias"]
[WhiteFideId "22701958"]
[BlackFideId "3001571"]
[WhiteElo "1995"]
[BlackElo "2231"]
[Result "1-0"]
[Round "08"]
[TimeControl "180+1"]
[Date "2021.07.06"]
[WhiteClock "0:00:08"]
[BlackClock "0:00:05"]

1. e4 {[%clk 0:03:00]}  c5 {[%clk 0:02:59]} 2. Nf3 {[%clk 0:03:01]}  d6 {[%clk 0:02:59]} 3. d4 {[%clk 0:03:01]}  cxd4 {[%clk 0:03:00]} 4. Nxd4 {[%clk 0:03:02]}  Nf6 {[%clk 0:03:00]} 5. Nc3 {[%clk 0:03:03]}  g6 {[%clk 0:03:01]} 6. Be3 {[%clk 0:03:00]}  Bg7 {[%clk 0:03:01]} 7. f3 {[%clk 0:03:01]}  O-O {[%clk 0:03:01]} 8. Qd2 {[%clk 0:03:01]}  Nc6 {[%clk 0:03:02]} 9. Bc4 {[%clk 0:03:01]}  Bd7 {[%clk 0:03:01]} 10. O-O-O {[%clk 0:03:00]}  Rc8 {[%clk 0:03:02]} 11. Bb3 {[%clk 0:03:00]}  Ne5 {[%clk 0:03:03]} 12. Kb1 {[%clk 0:02:58]}  Nc4 {[%clk 0:03:02]} 13. Bxc4 {[%clk 0:02:58]}  Rxc4 {[%clk 0:03:03]} 14. h4 {[%clk 0:02:58]}  h5 {[%clk 0:03:02]} 15. g4 {[%clk 0:02:43]}  hxg4 {[%clk 0:03:01]} 16. h5 {[%clk 0:02:43]}  Nxh5 {[%clk 0:03:02]} 17. fxg4 {[%clk 0:02:37]}  Bxg4 {[%clk 0:02:43]} 18. Rdg1 {[%clk 0:02:33]}  Qd7 {[%clk 0:02:35]} 19. Nd5 {[%clk 0:02:10]}  Re8 {[%clk 0:02:28]} 20. c3 {[%clk 0:02:00]}  e6 {[%clk 0:02:02]} 21. Nb6 {[%clk 0:01:29]}  axb6 {[%clk 0:02:01]} 22. Rxg4 {[%clk 0:01:28]}  Nf6 {[%clk 0:01:56]} 23. Rgh4 {[%clk 0:01:26]}  e5 {[%clk 0:01:38]} 24. Bg5 {[%clk 0:00:43]}  Nxe4 {[%clk 0:00:46]} 25. Qh2 {[%clk 0:00:26]}  f5 {[%clk 0:00:45]} 26. Rh8+ {[%clk 0:00:17]}  Kf7 {[%clk 0:00:45]} 27. Rh7 {[%clk 0:00:13]}  Rg8 {[%clk 0:00:42]} 28. Bh6 {[%clk 0:00:11]}  Nf6 {[%clk 0:00:29]} 29. Rxg7+ {[%clk 0:00:06]}  Rxg7 {[%clk 0:00:28]} 30. Bxg7 {[%clk 0:00:07]}  Kxg7 {[%clk 0:00:24]} 31. Qh8+ {[%clk 0:00:07]}  Kf7 {[%clk 0:00:25]} 32. Nf3 {[%clk 0:00:06]}  Ke6 {[%clk 0:00:15]} 33. Ng5+ {[%clk 0:00:06]}  Kd5 {[%clk 0:00:16]} 34. Qxf6 {[%clk 0:00:06]}  Rg4 {[%clk 0:00:10]} 35. Rd1+ {[%clk 0:00:07]}  Kc5 {[%clk 0:00:10]} 36. Ne6+ {[%clk 0:00:08]}  Kc6 {[%clk 0:00:10]} 37. Nf8 {[%clk 0:00:07]}  Qc7 {[%clk 0:00:09]} 38. Qe6 {[%clk 0:00:07]}  b5 {[%clk 0:00:05]} 39. Qd5+ {[%clk 0:00:07]}  Kb6 {[%clk 0:00:05]} 40. Ne6 {[%clk 0:00:08]}  Qc6 {[%clk 0:00:05]} 41. Qd3 {[%clk 0:00:05]}  Qe4 {[%clk 0:00:04]} 42. Qxe4 {[%clk 0:00:05]}  Rxe4 {[%clk 0:00:05]} 43. Rxd6+ {[%clk 0:00:05]}  Ka7 {[%clk 0:00:05]} 44. Nc5 {[%clk 0:00:06]}  Re1+ {[%clk 0:00:05]} 45. Kc2 {[%clk 0:00:06]}  g5 {[%clk 0:00:06]} 46. Rd7 {[%clk 0:00:06]}  g4 {[%clk 0:00:06]} 47. Rxb7+ {[%clk 0:00:06]}  Ka8 {[%clk 0:00:07]} 48. Rxb5 {[%clk 0:00:06]}  g3 {[%clk 0:00:08]} 49. Nd3 {[%clk 0:00:06]}  g2 {[%clk 0:00:07]} 50. Nxe1 {[%clk 0:00:06]}  g1=Q {[%clk 0:00:08]} 51. Nd3 {[%clk 0:00:07]}  Qg2+ {[%clk 0:00:07]} 52. Kb3 {[%clk 0:00:07]}  Qe4 {[%clk 0:00:08]} 53. Ra5+ {[%clk 0:00:07]}  Kb8 {[%clk 0:00:07]} 54. Rb5+ {[%clk 0:00:08]}  Kc7 {[%clk 0:00:07]} 55. Nc5 {[%clk 0:00:07]}  Qd5+ {[%clk 0:00:05]} 56. c4 {[%clk 0:00:08]}  Qd1+ {[%clk 0:00:06]} 57. Kb4 {[%clk 0:00:08]}  e4 {[%clk 0:00:06]} 58. Rb7+ {[%clk 0:00:08]}  Kc8 {[%clk 0:00:06]} 59. Re7 {[%clk 0:00:08]}  Qd6 {[%clk 0:00:05]} 60. Re6 {[%clk 0:00:07]}  Qb8+ {[%clk 0:00:05]} 61. Kc3 {[%clk 0:00:07]}  Qc7 {[%clk 0:00:05]} 62. Na6 {[%clk 0:00:07]}  Qg3+ {[%clk 0:00:04]} 63. Kb4 {[%clk 0:00:07]}  Qd3 {[%clk 0:00:04]} 64. Rc6+ {[%clk 0:00:06]}  Kd7 {[%clk 0:00:04]} 65. Nc5+ {[%clk 0:00:06]}  Kxc6 {[%clk 0:00:05]} 66. Nxd3 {[%clk 0:00:07]}  exd3 {[%clk 0:00:05]} 67. Kc3 {[%clk 0:00:07]}  Kc5 {[%clk 0:00:04]} 68. Kxd3 {[%clk 0:00:08]}  f4 {[%clk 0:00:05]} 69. b3 {[%clk 0:00:08]}  f3 {[%clk 0:00:04]} 70. Ke3 {[%clk 0:00:08]}  f2 {[%clk 0:00:05]} 1-0


[Site "https://www.chess.com"]

[Event "Titled Tuesday Blitz July 6 2021"]
[White "Torkkola, Henri"]
[Black "AleksanderHnydiuk"]
[WhiteFideId "507660"]
[WhiteElo "2137"]
[BlackElo "2530"]
[Result "0-1"]
[Round "08"]
[TimeControl "180+1"]
[Date "2021.07.06"]
[WhiteClock "0:00:01"]
[BlackClock "0:01:15"]

1. d4 {[%clk 0:03:00]}  Nf6 {[%clk 0:02:59]} 2. Bf4 {[%clk 0:03:00]}  g6 {[%clk 0:02:59]} 3. e3 {[%clk 0:03:00]}  Bg7 {[%clk 0:02:59]} 4. Nf3 {[%clk 0:03:01]}  O-O {[%clk 0:02:59]} 5. Be2 {[%clk 0:03:02]}  d6 {[%clk 0:03:00]} 6. h3 {[%clk 0:03:02]}  Nc6 {[%clk 0:03:00]} 7. Nc3 {[%clk 0:03:02]}  Qe8 {[%clk 0:03:00]} 8. O-O {[%clk 0:03:01]}  e5 {[%clk 0:03:00]} 9. Bh2 {[%clk 0:03:02]}  Qe7 {[%clk 0:03:00]} 10. a4 {[%clk 0:02:59]}  Bf5 {[%clk 0:02:59]} 11. a5 {[%clk 0:02:56]}  a6 {[%clk 0:02:58]} 12. Re1 {[%clk 0:02:38]}  Rfe8 {[%clk 0:02:55]} 13. Bc4 {[%clk 0:02:28]}  Rad8 {[%clk 0:02:53]} 14. Bb3 {[%clk 0:02:05]}  Ne4 {[%clk 0:02:49]} 15. Nxe4 {[%clk 0:01:44]}  Bxe4 {[%clk 0:02:50]} 16. Nd2 {[%clk 0:01:44]}  Bf5 {[%clk 0:02:50]} 17. e4 {[%clk 0:01:43]}  Bc8 {[%clk 0:02:49]} 18. d5 {[%clk 0:01:29]}  Nb8 {[%clk 0:02:42]} 19. Ba4 {[%clk 0:01:22]}  Rf8 {[%clk 0:02:37]} 20. c4 {[%clk 0:01:21]}  f5 {[%clk 0:02:36]} 21. f3 {[%clk 0:01:15]}  Bh6 {[%clk 0:02:34]} 22. Kh1 {[%clk 0:01:12]}  Nd7 {[%clk 0:02:31]} 23. b4 {[%clk 0:01:11]}  Nf6 {[%clk 0:02:30]} 24. b5 {[%clk 0:01:00]}  Nh5 {[%clk 0:02:27]} 25. bxa6 {[%clk 0:00:56]}  bxa6 {[%clk 0:02:27]} 26. c5 {[%clk 0:00:48]}  Qh4 {[%clk 0:02:26]} 27. Nf1 {[%clk 0:00:44]}  Bf4 {[%clk 0:02:15]} 28. cxd6 {[%clk 0:00:26]}  cxd6 {[%clk 0:02:14]} 29. Qe2 {[%clk 0:00:19]}  g5 {[%clk 0:02:09]} 30. exf5 {[%clk 0:00:13]}  Bxh2 {[%clk 0:02:08]} 31. Kxh2 {[%clk 0:00:12]}  Qf4+ {[%clk 0:02:04]} 32. Kh1 {[%clk 0:00:11]}  Bxf5 {[%clk 0:01:42]} 33. g4 {[%clk 0:00:11]}  Bg6 {[%clk 0:01:37]} 34. gxh5 {[%clk 0:00:08]}  Bxh5 {[%clk 0:01:38]} 35. Nh2 {[%clk 0:00:08]}  Qg3 {[%clk 0:01:37]} 36. Rg1 {[%clk 0:00:05]}  Qh4 {[%clk 0:01:35]} 37. Rg2 {[%clk 0:00:03]}  h6 {[%clk 0:01:34]} 38. Bd1 {[%clk 0:00:02]}  Qxh3 {[%clk 0:01:34]} 39. Ra4 {[%clk 0:00:02]}  Bxf3 {[%clk 0:01:32]} 40. Qf1 {[%clk 0:00:01]}  Bxd5 {[%clk 0:01:23]} 41. Qg1 {[%clk 0:00:02]}  Rf4 {[%clk 0:01:20]} 42. Rxf4 {[%clk 0:00:01]}  exf4 {[%clk 0:01:20]} 43. Be2 {[%clk 0:00:01]}  Re8 {[%clk 0:01:15]} 0-1


[Site "https://www.chess.com"]

[Event "Titled Tuesday Blitz July 6 2021"]
[White "Tristan, Leonardo"]
[Black "Jakubowski, Krzysztof"]
[WhiteFideId "113816"]
[BlackFideId "1112848"]
[WhiteElo "2723"]
[BlackElo "2602"]
[Result "1-0"]
[Round "08"]
[TimeControl "180+1"]
[Date "2021.07.06"]
[WhiteClock "0:00:16"]
[BlackClock "0:00:04"]

1. d4 {[%clk 0:03:00]}  Nf6 {[%clk 0:02:56]} 2. Bg5 {[%clk 0:03:00]}  d5 {[%clk 0:02:53]} 3. Nd2 {[%clk 0:03:00]}  Nbd7 {[%clk 0:02:51]} 4. Ngf3 {[%clk 0:02:59]}  e6 {[%clk 0:02:47]} 5. e3 {[%clk 0:02:59]}  Be7 {[%clk 0:02:45]} 6. Bd3 {[%clk 0:02:59]}  c5 {[%clk 0:02:44]} 7. c3 {[%clk 0:02:59]}  c4 {[%clk 0:02:33]} 8. Bc2 {[%clk 0:02:59]}  b5 {[%clk 0:02:32]} 9. e4 {[%clk 0:02:47]}  Qb6 {[%clk 0:02:23]} 10. e5 {[%clk 0:02:40]}  Ng8 {[%clk 0:02:21]} 11. a3 {[%clk 0:02:33]}  h6 {[%clk 0:02:15]} 12. Be3 {[%clk 0:02:23]}  Bb7 {[%clk 0:01:52]} 13. h4 {[%clk 0:02:18]}  Bf8 {[%clk 0:01:45]} 14. h5 {[%clk 0:02:10]}  Ne7 {[%clk 0:01:45]} 15. a4 {[%clk 0:02:10]}  a6 {[%clk 0:01:35]} 16. axb5 {[%clk 0:02:07]}  axb5 {[%clk 0:01:36]} 17. Rxa8+ {[%clk 0:02:07]}  Bxa8 {[%clk 0:01:37]} 18. Qa1 {[%clk 0:02:08]}  Bb7 {[%clk 0:01:35]} 19. g4 {[%clk 0:01:56]}  Nc6 {[%clk 0:01:33]} 20. g5 {[%clk 0:01:50]}  b4 {[%clk 0:01:31]} 21. g6 {[%clk 0:01:45]}  f6 {[%clk 0:01:15]} 22. exf6 {[%clk 0:01:43]}  Nxf6 {[%clk 0:01:12]} 23. Ne5 {[%clk 0:01:35]}  Be7 {[%clk 0:01:00]} 24. Ndf3 {[%clk 0:01:23]}  O-O {[%clk 0:00:57]} 25. Qc1 {[%clk 0:01:23]}  bxc3 {[%clk 0:00:50]} 26. bxc3 {[%clk 0:01:23]}  Ne4 {[%clk 0:00:44]} 27. Nd7 {[%clk 0:00:33]}  Qa5 {[%clk 0:00:42]} 28. Bxe4 {[%clk 0:00:34]}  dxe4 {[%clk 0:00:32]} 29. Nxf8 {[%clk 0:00:32]}  Bxf8 {[%clk 0:00:18]} 30. Nd2 {[%clk 0:00:31]}  Qd5 {[%clk 0:00:10]} 31. Qb1 {[%clk 0:00:26]}  Na5 {[%clk 0:00:09]} 32. Qb6 {[%clk 0:00:20]}  Nb3 {[%clk 0:00:08]} 33. Qc7 {[%clk 0:00:20]}  e5 {[%clk 0:00:06]} 34. Qxc4 {[%clk 0:00:16]}  Nxd2 {[%clk 0:00:04]} 35. Qxd5+ {[%clk 0:00:17]}  Bxd5 {[%clk 0:00:05]} 36. Kxd2 {[%clk 0:00:17]}  exd4 {[%clk 0:00:05]} 37. cxd4 {[%clk 0:00:17]}  Bb4+ {[%clk 0:00:04]} 38. Kc2 {[%clk 0:00:16]} 1-0


[Site "https://www.chess.com"]

[Event "Titled Tuesday Blitz July 6 2021"]
[White "Vakhlamov, Igor L."]
[Black "Markidis, Konstantinos"]
[WhiteFideId "24126748"]
[BlackFideId "4203500"]
[WhiteElo "2416"]
[BlackElo "2304"]
[Result "1/2-1/2"]
[Round "08"]
[TimeControl "180+1"]
[Date "2021.07.06"]
[WhiteClock "0:00:06"]
[BlackClock "0:00:17"]

1. e4 {[%clk 0:03:00]}  e6 {[%clk 0:02:59]} 2. d4 {[%clk 0:02:59]}  d5 {[%clk 0:03:00]} 3. Nc3 {[%clk 0:02:59]}  h6 {[%clk 0:03:00]} 4. Nf3 {[%clk 0:02:59]}  Nf6 {[%clk 0:02:59]} 5. Bd3 {[%clk 0:02:46]}  Bb4 {[%clk 0:02:58]} 6. exd5 {[%clk 0:02:46]}  exd5 {[%clk 0:02:58]} 7. O-O {[%clk 0:02:46]}  O-O {[%clk 0:02:58]} 8. Ne2 {[%clk 0:02:47]}  Bd6 {[%clk 0:02:38]} 9. Ng3 {[%clk 0:02:45]}  c5 {[%clk 0:02:36]} 10. dxc5 {[%clk 0:02:42]}  Bxc5 {[%clk 0:02:37]} 11. Bf4 {[%clk 0:02:30]}  Nc6 {[%clk 0:02:35]} 12. a3 {[%clk 0:02:28]}  a6 {[%clk 0:02:34]} 13. Qd2 {[%clk 0:02:27]}  Re8 {[%clk 0:02:33]} 14. Rae1 {[%clk 0:02:25]}  Be6 {[%clk 0:02:32]} 15. Bxh6 {[%clk 0:02:18]}  gxh6 {[%clk 0:02:22]} 16. Qxh6 {[%clk 0:02:18]}  Bf8 {[%clk 0:02:22]} 17. Qh4 {[%clk 0:01:42]}  Bg7 {[%clk 0:02:20]} 18. Ng5 {[%clk 0:01:39]}  Qd6 {[%clk 0:01:41]} 19. Nh5 {[%clk 0:01:17]}  Nxh5 {[%clk 0:01:41]} 20. Qxh5 {[%clk 0:01:18]}  Ne5 {[%clk 0:01:41]} 21. h3 {[%clk 0:00:58]}  f6 {[%clk 0:01:25]} 22. Nxe6 {[%clk 0:00:42]}  Rxe6 {[%clk 0:01:23]} 23. Qh7+ {[%clk 0:00:36]}  Kf8 {[%clk 0:01:23]} 24. Bf5 {[%clk 0:00:36]}  Re7 {[%clk 0:01:23]} 25. f4 {[%clk 0:00:28]}  Nf7 {[%clk 0:01:21]} 26. Qh4 {[%clk 0:00:20]}  Rxe1 {[%clk 0:01:13]} 27. Rxe1 {[%clk 0:00:21]}  Re8 {[%clk 0:01:12]} 28. Rxe8+ {[%clk 0:00:20]}  Kxe8 {[%clk 0:01:12]} 29. Bg6 {[%clk 0:00:20]}  Kf8 {[%clk 0:01:11]} 30. Qf2 {[%clk 0:00:19]}  Nd8 {[%clk 0:01:09]} 31. g3 {[%clk 0:00:19]}  Nc6 {[%clk 0:01:08]} 32. c3 {[%clk 0:00:18]}  d4 {[%clk 0:01:08]} 33. cxd4 {[%clk 0:00:18]}  Qxd4 {[%clk 0:01:09]} 34. Qxd4 {[%clk 0:00:17]}  Nxd4 {[%clk 0:01:09]} 35. Be4 {[%clk 0:00:18]}  f5 {[%clk 0:01:08]} 36. Bxb7 {[%clk 0:00:18]}  a5 {[%clk 0:01:09]} 37. Kf2 {[%clk 0:00:18]}  Ke7 {[%clk 0:01:00]} 38. b4 {[%clk 0:00:18]}  a4 {[%clk 0:00:53]} 39. g4 {[%clk 0:00:16]}  Kd6 {[%clk 0:00:53]} 40. g5 {[%clk 0:00:12]}  Nc2 {[%clk 0:00:53]} 41. Bc8 {[%clk 0:00:09]}  Nxa3 {[%clk 0:00:50]} 42. Bxf5 {[%clk 0:00:10]}  Nc4 {[%clk 0:00:47]} 43. Bb1 {[%clk 0:00:06]}  a3 {[%clk 0:00:46]} 44. Ba2 {[%clk 0:00:07]}  Nb2 {[%clk 0:00:44]} 45. Ke2 {[%clk 0:00:06]}  Na4 {[%clk 0:00:41]} 46. Kd3 {[%clk 0:00:06]}  Nc3 {[%clk 0:00:41]} 47. Bb3 {[%clk 0:00:05]}  a2 {[%clk 0:00:41]} 48. Bxa2 {[%clk 0:00:05]}  Nxa2 {[%clk 0:00:42]} 49. f5 {[%clk 0:00:05]}  Ke5 {[%clk 0:00:33]} 50. f6 {[%clk 0:00:05]}  Bf8 {[%clk 0:00:28]} 51. b5 {[%clk 0:00:04]}  Nb4+ {[%clk 0:00:25]} 52. Kc4 {[%clk 0:00:04]}  Nd5 {[%clk 0:00:25]} 53. h4 {[%clk 0:00:05]}  Nb6+ {[%clk 0:00:25]} 54. Kd3 {[%clk 0:00:05]}  Kf5 {[%clk 0:00:24]} 55. Kd4 {[%clk 0:00:05]}  Ke6 {[%clk 0:00:19]} 56. Ke4 {[%clk 0:00:06]}  Nc4 {[%clk 0:00:18]} 57. Kd4 {[%clk 0:00:06]}  Nb6 {[%clk 0:00:17]} 58. Ke4 {[%clk 0:00:06]}  Nc4 {[%clk 0:00:18]} 59. Kd4 {[%clk 0:00:06]}  Nb6 {[%clk 0:00:17]} 1/2-1/2


[Site "https://www.chess.com"]

[Event "Titled Tuesday Blitz July 6 2021"]
[White "Vivas Zamora, Fabian Ernesto"]
[Black "Maevsky, Nikolay"]
[WhiteFideId "3902480"]
[BlackFideId "4198220"]
[WhiteElo "1966"]
[BlackElo "2213"]
[Result "1/2-1/2"]
[Round "08"]
[TimeControl "180+1"]
[Date "2021.07.06"]
[WhiteClock "0:00:02"]
[BlackClock "0:00:04"]

1. c4 {[%clk 0:02:59]}  Nc6 {[%clk 0:02:58]} 2. Nf3 {[%clk 0:02:50]}  e5 {[%clk 0:02:52]} 3. Nc3 {[%clk 0:02:50]}  Nf6 {[%clk 0:02:48]} 4. e4 {[%clk 0:02:49]}  Bc5 {[%clk 0:02:46]} 5. Nxe5 {[%clk 0:02:49]}  Nxe5 {[%clk 0:02:41]} 6. d4 {[%clk 0:02:49]}  Bd6 {[%clk 0:02:41]} 7. c5 {[%clk 0:02:49]}  Ng6 {[%clk 0:02:15]} 8. cxd6 {[%clk 0:02:45]}  cxd6 {[%clk 0:02:15]} 9. h4 {[%clk 0:02:31]}  h6 {[%clk 0:02:13]} 10. h5 {[%clk 0:02:24]}  Ne7 {[%clk 0:02:13]} 11. Bf4 {[%clk 0:02:22]}  d5 {[%clk 0:02:06]} 12. e5 {[%clk 0:02:13]}  Ne4 {[%clk 0:02:03]} 13. Qg4 {[%clk 0:01:51]}  Nxc3 {[%clk 0:01:41]} 14. bxc3 {[%clk 0:01:49]}  Qa5 {[%clk 0:01:35]} 15. Bd2 {[%clk 0:01:35]}  O-O {[%clk 0:01:25]} 16. Qg3 {[%clk 0:00:32]}  Nf5 {[%clk 0:01:02]} 17. Qf3 {[%clk 0:00:29]}  d6 {[%clk 0:00:59]} 18. Bd3 {[%clk 0:00:27]}  dxe5 {[%clk 0:00:36]} 19. Bxf5 {[%clk 0:00:26]}  Bxf5 {[%clk 0:00:27]} 20. Qxf5 {[%clk 0:00:27]}  exd4 {[%clk 0:00:27]} 21. Rh3 {[%clk 0:00:10]}  Rfe8+ {[%clk 0:00:26]} 22. Kf1 {[%clk 0:00:09]}  Qa6+ {[%clk 0:00:21]} 23. Kg1 {[%clk 0:00:08]}  Qe2 {[%clk 0:00:16]} 24. Rd3 {[%clk 0:00:04]}  Re5 {[%clk 0:00:15]} 25. Qh3 {[%clk 0:00:03]}  Rxh5 {[%clk 0:00:14]} 26. Qg3 {[%clk 0:00:03]}  dxc3 {[%clk 0:00:13]} 27. Bxc3 {[%clk 0:00:03]}  Rg5 {[%clk 0:00:12]} 28. Qh3 {[%clk 0:00:03]}  Re8 {[%clk 0:00:08]} 29. Re1 {[%clk 0:00:03]}  Qxe1+ {[%clk 0:00:06]} 30. Bxe1 {[%clk 0:00:04]}  Rxe1+ {[%clk 0:00:06]} 31. Kh2 {[%clk 0:00:04]}  Ree5 {[%clk 0:00:06]} 32. g4 {[%clk 0:00:02]}  Rg6 {[%clk 0:00:05]} 33. f4 {[%clk 0:00:03]}  Re2+ {[%clk 0:00:05]} 34. Kg3 {[%clk 0:00:03]}  Rge6 {[%clk 0:00:05]} 35. Qf1 {[%clk 0:00:03]}  R6e4 {[%clk 0:00:05]} 36. Qf3 {[%clk 0:00:03]}  d4 {[%clk 0:00:04]} 37. Kh4 {[%clk 0:00:02]}  Rh2+ {[%clk 0:00:03]} 38. Kg3 {[%clk 0:00:02]}  Rhe2 {[%clk 0:00:04]} 39. Kh4 {[%clk 0:00:02]}  Rh2+ {[%clk 0:00:04]} 40. Kg3 {[%clk 0:00:02]}  Rhe2 {[%clk 0:00:04]} 1/2-1/2


[Site "https://www.chess.com"]